Workbook

Sheet Sheet1
A1: 2024年生产部7月接收处置记录统计表 | R1: 自产废物
A2: 废物名称 | B2: 危废代码 | C2: 形态 | D2: 上月结存 | E2: 本月接收量 | F2: 处置量及工艺 | J2: 库存量 | K2: 1#库 | L2: 2#库 | M2: 干化库 | N2: 罐区 | O2: 料坑 | R2: 废物名称 | S2: 上月结存 | T2: 本月产生量 | U2: 包数 | V2: 本月处理 | Y2: 库存 | Z2: 备注 | AA2: 存储位置
F3: 固废焚烧 | G3: 废液焚烧 | H3: 清洗大桶 | I3: 污泥干化 | K3: 1#库 | L3: 2#库 | M3: 干化库 | N3: 罐区 | O3: 料坑 | V3: 焚烧处置 | W3: 液体炉 | X3: 拉运
A4: 精馏残渣 | B4: 271-001-02 | C4: 固态 | D4: 0 | J4: =D4+E4-F4-G4-H4-I4 -> 0 | P4: =K4+L4+M4+N4+O4 -> 0 | R4: 炉渣（回转窑） | S4: 404.267 | T4: =159.42 -> 159.42 | U4: 149 | X4: 95.005 | Y4: =S4+T4-V4-X4-W4 -> 468.682
A5: 废有机溶剂 | B5: 271-002-02 | C5: 液态 | D5: 15.321 | J5: 15.321 | L5: 15.321 | P5: 15.321 | R5: 飞灰（回转窑） | S5: 30.475 | T5: 24.835 | U5: 60 | X5: 21.66 | Y5: 33.65
A6: 过滤介质 | B6: 271-003-02 | C6: 固态 | D6: 0 | J6: 0 | P6: 0 | R6: 飞灰（废液炉） | S6: 8.65 | T6: 0.725 | U6: 2 | Y6: 9.375
A7: 废盐 | B7: 271-005-02 | C7: 固态 | D7: 17.44 | E7: =18.06+19.54 -> 37.6 | F7: =7.44+23.06+5 -> 35.5 | J7: 19.54 | K7: 19.54 | P7: 19.54 | R7: 废油渣/泥 | S7: 0 | Y7: 0 | Z7: 精馏切水后剩下的罐底泥
A8: 实验室废液 | B8: 900-002-03 | C8: 液态 | D8: 0 | E8: =13.1975+12.65 -> 25.8475 | F8: =0.0065 -> 0.0065 | J8: 25.841 | L8: 25.841 | P8: 25.841 | R8: 含油污水 | S8: 0 | T8: 4.1 | V8: 4.1 | Y8: 0 | Z8: 蒸汽清洗过程 | AA8: 2#库
A9: 高危化学品 | B9: 900-002-03 | C9: 半固态 | D9: 0 | E9: =0.12+0.019 -> 0.139 | F9: =0.12+0.019 -> 0.139 | J9: 0 | P9: 0 | R9: 废商标 | S9: 0 | T9: 1.105 | V9: 1.105 | Y9: 0 | Z9: 除商标 | AA9: 2#库
A10: 一般废药品 | B10: 900-002-03 | C10: 固态 | D10: 0 | E10: =0.17+0.26 -> 0.43 | F10: =0.17+0.26 -> 0.43 | J10: 0 | P10: 0 | R10: 废残液 | S10: 0 | T10: 2.995 | V10: 2.995 | Y10: 0 | Z10: 抽残液 | AA10: 2#库
A11: 磷化铝、杀虫剂 | B11: 900-003-04 | C11: 固态 | D11: 0 | J11: 0 | P11: 0 | R11: 废渣 | S11: 0 | T11: 2.07 | V11: 2.07 | Y11: 0 | Z11: 清洗过程 | AA11: 2#库
A12: 废药物、药品 杀虫剂、磷化铝等 | B12: 900-003-04 | C12: 半固态 | D12: 0 | J12: 0 | P12: 0 | R12: 漆渣 | S12: 0 | Y12: 0 | Z12: 清洗过程
A13: 废盐 | B13: 263-008-04 | C13: 固态 | D13: 0 | J13: 0 | P13: 0 | R13: 污水厂污泥 | S13: 0 | T13: 1.21 | V13: 1.21 | Y13: 0 | Z13: 水处理后产生的污泥 | AA13: 2#库
A14: 蒸馏残液 | B14: 263-008-04 | C14: 半固态 | D14: 9.4 | J14: 9.4 | K14: =9.4 -> 9.4 | P14: 9.4 | R14: 废清洗剂 | S14: 0 | Y14: 0 | Z14: 清洗剂清洗过程
A15: 废渣 | B15: 263-009-04 | C15: 固态 | D15: 5 | J15: 5 | K15: =5 -> 5 | P15: 5
A16: 污泥 | B16: 263-011-04 | C16: 固态 | D16: 2.48 | J16: 2.48 | K16: 2.48 | P16: 2.48
A17: 废弃木材 | B17: 201-003-05 | C17: 固态 | D17: 17.12 | E17: =14.16+4.8 -> 18.96 | F17: =11.66+5.46+18.96 -> 36.08 | J17: 0 | P17: 0
A18: 废有机溶剂 | B18: 900-401-06 | C18: 液态 | D18: 0 | J18: 0 | P18: 0
A19: 废有机溶剂及废物 | B19: 900-402-06 | C19: 液态 | D19: 137.645 | E19: =1.623+0.02 -> 1.643 | F19: =0.6+1.623+0.02 -> 2.243 | J19: 137.045 | K19: 2.094 | L19: 134.951 | P19: 137.045
A20: 清洗剂、渗透剂包装物 | B20: 900-402-06 | C20: 固态 | D20: 0 | J20: 0 | P20: 0
A21: 废有机溶剂 | B21: 900-404-06 | C21: 液态 | D21: 16.19 | E21: =1.27 -> 1.27 | F21: =1.27+0.6 -> 1.87 | J21: 15.59 | L21: 15.59 | P21: 15.59
A22: 定期更换的活性炭 | B22: 900-405-06 | C22: 固态 | D22: 0 | J22: 0 | P22: 0
A23: 丙烯酸甲酯聚合物 | B23: 900-407-06 | C23: 固态 | D23: 0 | J23: 0 | P23: 0
A24: 废有机溶剂 | B24: 900-407-06 | C24: 液态 | D24: 18.534 | E24: =22.0464+11.6647 -> 33.7111 | J24: 52.2451 | L24: 52.2451 | P24: 52.2451
A25: 油污水 | B25: 251-001-08 | C25: 液态 | D25: 83.28 | E25: =61.34+23.62 -> 84.96 | J25: 168.24 | L25: 168.24 | P25: 168.24
A26: 废滤芯 | B26: 251-012-08 | C26: 固态 | D26: 0 | J26: 0 | P26: 0
A27: 废溶剂油 | B27: 291-001-08 | C27: 液态 | D27: 0 | J27: 0 | P27: 0
A28: 废溶剂油 | B28: 291-001-08 | C28: 半固态 | D28: 62.94 | J28: 62.94 | K28: 62.94 | P28: 62.94
A29: 油泥、油脚 | B29: 071-001-08 | C29: 液态 | D29: 0 | J29: 0 | P29: 0
A30: 含油泥浆 | B30: 071-002-08 | C30: 液态 | D30: 1125.3 | J30: 1125.3 | N30: 1125.3 | P30: 1125.3
A31: 含油岩屑 | B31: 071-002-08 | C31: 半固态 | D31: 3153.433 | F31: =6.66+4.44+13.3+14.41 -> 38.81 | J31: 3114.623 | M31: =587.991-67.97 -> 520.021 | N31: 2594.602 | P31: 3114.623
A32: 废油泥 | B32: 900-200-08 | C32: 半固态 | D32: 0 | E32: =0.81 -> 0.81 | J32: 0.81 | L32: 0.81 | P32: 0.81
A33: HW08废油 | B33: 900-200-08 | C33: 液态 | D33: 13.68 | J33: 13.68 | K33: 5.88 | N33: 7.8 | P33: 13.68
A34: 油泥 | B34: 900-201-08 | C34: 液态 | D34: 3.626 | J34: 3.626 | N34: 3.626 | P34: 3.626
A35: 油泥 | B35: 900-201-08 | C35: 半固态 | D35: 0 | J35: 0 | P35: 0
A36: 废润滑油废浮渣 | B36: 900-209-08 | C36: 半固态 | D36: 0 | E36: =0.471 -> 0.471 | F36: =0.471 -> 0.471 | J36: 0 | P36: 0
A37: 水处理浮渣及污泥 | B37: 900-210-08 | C37: 半固态 | D37: 3.3 | E37: =0.4+0.367 -> 0.767 | F37: =0.4+0.367 -> 0.767 | J37: 3.3 | K37: 3.3 | P37: 3.3
A38: 废机油、含油废水 | B38: 900-210-08 | C38: 液态 | D38: 184.42 | E38: =18.02+3.54+29.22 -> 50.78 | J38: 235.2 | L38: 32.76 | N38: 202.44 | P38: 235.2
A39: 废油泥 | B39: 900-210-08 | C39: 固态 | D39: 65.28 | F39: =14.12+6+10.56 -> 30.68 | J39: 34.6 | L39: 34.6 | P39: 34.6
A40: 废水处理过程产废油、油泥、浮渣 | B40: 900-210-08 | C40: 液态 | D40: 1616 | J40: 1616 | N40: 1616 | P40: 1616
A41: 废白土 | B41: 900-213-08 | C41: 固态 | D41: 0 | E41: =21.38 -> 21.38 | J41: 21.38 | L41: 21.38 | P41: 21.38
A42: 废机油 | B42: 900-213-08 | C42: 液态 | D42: 1 | J42: 1 | N42: 1 | P42: 1
A43: 废矿物油 | B43: 900-214-08 | C43: 液态 | D43: 46.05565 | E43: =7.44+1.61+10.88 -> 19.93 | J43: 65.98565 | N43: 65.98565 | P43: 65.98565
A44: 废矿物油 | B44: 900-214-08 | C44: 半固态 | D44: 0.56 | E44: =8 -> 8 | J44: 8.56 | K44: 8 | L44: 0.56 | P44: 8.56
A45: 废矿物油 | B45: 900-217-08 | C45: 液态 | D45: 26.44185 | E45: =1.06+1+5.6 -> 7.66 | J45: 34.10185 | N45: 34.10185 | P45: 34.10185
A46: 废甘油 | B46: 900-217-08 | C46: 半固态 | D46: 0 | J46: 0 | P46: 0
A47: 废液压油 | B47: 900-218-08 | C47: 液态 | D47: 32.0708 | E47: =8.3 -> 8.3 | J47: 40.3708 | N47: 40.3708 | P47: 40.3708
A48: 废冷冻机油 | B48: 900-219-08 | C48: 液态 | D48: 9.14 | E48: =1.78+0.85 -> 2.63 | J48: 11.77 | N48: 11.77 | P48: 11.77
A49: 废矿物油与含矿物油废物 | B49: 900-220-08 | C49: 液态 | D49: 5.81833 | E49: =39.3 -> 39.3 | J49: 45.11833 | L49: 39.3 | N49: 5.81833 | P49: 45.11833
A50: 清罐污泥 | B50: 900-220-08 | C50: 固态 | D50: 0 | J50: 0 | P50: 0
A51: 废油泥 | B51: 900-221-08 | C51: 半固态 | D51: 31.26 | F51: =31.26 -> 31.26 | J51: 0 | P51: 0
A52: 废矿物油 | B52: 900-249-08 | C52: 液态 | D52: 93.8935 | E52: =2.18+10.02+0.157+0.41+4.68+0.22+0.416 -> 18.083 | F52: =0.22 -> 0.22 | J52: 111.7565 | N52: =10.6+101.1565 -> 111.7565 | P52: 111.7565
A53: 废矿物油、废油桶 | B53: 900-249-08 | C53: 固态 | D53: 35.511 | E53: =20.12+12.96+1.06+0.88+12.62+3.96+26.34+8+8.26+8.74+12.32+0.3+8.312 -> 123.872 | H53: =10.92+4.6+4.6+9.2+4.82+17.32+8.22+15.96 -> 75.64 | J53: 83.743 | K53: 31.332 | L53: 52.411 | P53: 83.743
A54: 废矿物油、油泥 | B54: 900-249-08 | C54: 半固态 | D54: 16.42 | E54: =23.16 -> 23.16 | F54: =2.32 -> 2.32 | J54: 37.26 | K54: 24.44 | L54: 12.82 | P54: 37.26
A55: 废水、乳化液 | B55: 900-007-09 | C55: 液态 | D55: 24.386 | E55: =7.5+23.78+23.8+23.82+29.242+33.1+60.54 -> 201.782 | G55: =8.359 -> 8.359 | J55: 217.809 | L55: 217.409 | N55: 0.4 | P55: 217.809
A56: 废乳化液 | B56: 900-006-09 | C56: 液态 | D56: 77.5 | E56: =27.64+4.42+13+24.52 -> 69.58 | G56: =4+8 -> 12 | J56: 135.08 | L56: 135.08 | P56: 135.08
A57: 砂轮沫 | B57: 900-006-09 | C57: 固态 | D57: 0 | J57: 0 | P57: 0
A58: 废焦油渣 | B58: 252-005-11 | C58: 固态 | D58: 0 | J58: 0 | P58: 0
A59: 煤焦油、釜残 | B59: 900-013-11 | C59: 固态 | D59: 11.2224 | J59: 11.2224 | L59: 11.2224 | P59: 11.2224
A60: 煤焦油 | B60: 900-013-11 | C60: 液态 | D60: 21 | F60: =8 -> 8 | J60: 13 | K60: 13 | P60: 13
A61: 釜残 | B61: 900-013-11 | C61: 半固态 | D61: 195.76 | E61: =29.36 -> 29.36 | J61: 225.12 | K61: 225.12 | P61: 225.12
A62: 煤焦油 | B62: 451-003-11 | C62: 半固态 | D62: 0 | J62: 0 | P62: 0
A63: 煤焦油 | B63: 451-003-11 | C63: 液态 | D63: 150.06 | E63: =5.32 -> 5.32 | F63: =15+18+7.3+11 -> 51.3 | G63: =10.8+10.96 -> 21.76 | J63: 82.32 | L63: 39.82 | N63: 42.5 | P63: 82.32
A64: 焦油渣 | B64: 451-003-11 | C64: 固态 | D64: 0 | J64: 0 | P64: 0
A65: 焦油渣 | B65: 451-001-11 | C65: 固态 | D65: 0 | J65: 0 | P65: 0
A66: 漆渣 | B66: 900-250-12 | C66: 固态 | D66: 0 | E66: =0.65 -> 0.65 | J66: 0.65 | K66: 0.65 | P66: 0.65
A67: 漆渣 | B67: 900-251-12 | C67: 半固态 | D67: 10 | F67: =5+5 -> 10 | J67: 0 | P67: 0
A68: 废彩涂液 | B68: 900-252-12 | C68: 液态 | D68: 73 | E68: =15.48 -> 15.48 | J68: =D68+E68-F68-G68-H68-I68 -> 88.48 | K68: 21.92 | L68: 66.56 | P68: =K68+L68+M68+N68+O68 -> 88.48
A69: 废漆渣 | B69: 900-252-12 | C69: 固态 | D69: 78.3 | E69: =6.88+4+1.94 -> 12.82 | F69: =16.18+9.08+3.5 -> 28.76 | J69: 62.36 | K69: =32.34 -> 32.34 | L69: 30.02 | P69: 62.36
A70: 漆渣 | B70: 900-252-12 | C70: 半固态 | D70: 5.82 | E70: =4.61 -> 4.61 | J70: 10.43 | L70: 10.43 | P70: 10.43
A71: 废油漆 | B71: 900-256-12 | C71: 液态 | D71: 5.72 | E71: =0.057456 -> 0.057456 | F71: =0.72+0.057456 -> 0.777456 | J71: 5 | K71: 5 | P71: 5
A72: 油墨渣子、油漆 | B72: 900-299-12 | C72: 半固态 | D72: 0 | E72: =0.1 -> 0.1 | F72: =0.1 -> 0.1 | J72: 0 | P72: 0
A73: 硒鼓墨盒 | B73: 900-299-12 | C73: 固态 | D73: 0 | E73: =0.054 -> 0.054 | F73: =0.054 -> 0.054 | J73: 0 | P73: 0
A74: 油漆渣 | B74: 900-299-12 | C74: 液态 | D74: 3.92 | F74: =2.32 -> 2.32 | J74: 1.6 | L74: 1.6 | P74: 1.6
A75: 废油墨 | B75: 264-011-12 | C75: 液态 | D75: 0 | J75: 0 | P75: 0
A76: 油墨渣 | B76: 264-011-12 | C76: 固态 | D76: 0 | J76: 0 | P76: 0
A77: 废水处理污泥 | B77: 264-012-12 | C77: 固态 | D77: 8 | F77: =8 -> 8 | J77: 0 | P77: 0
A78: 废漆渣稀释剂混合物 | B78: 264-013-12 | C78: 液态 | D78: 0 | J78: 0 | P78: 0
A79: 发泡废料，废胶水 | B79: 900-014-13 | C79: 半固态 | D79: 0.166 | E79: =0.6 -> 0.6 | F79: =0.6 -> 0.6 | J79: 0.166 | K79: 0.166 | P79: 0.166
A80: 废胶水 | B80: 900-014-13 | C80: 液态 | D80: 0 | J80: 0 | P80: 0
A81: 发泡废料，废胶水 | B81: 900-014-13 | C81: 固态 | D81: 8.52 | E81: =2.94+0.003 -> 2.943 | F81: =1.2+0.003+7.32+2.94 -> 11.463 | J81: 0 | P81: 0
A82: 废树脂 | B82: 900-015-13 | C82: 固态 | D82: 0 | E82: =10+6.9 -> 16.9 | J82: 16.9 | K82: 16.9 | P82: 16.9
A83: 废树脂 | B83: 900-015-13 | C83: 半固态 | D83: 0 | J83: 0 | P83: 0
A84: 有机树脂废物 | B84: 900-016-13 | C84: 半固态 | D84: 10.07 | E84: =4.45 -> 4.45 | F84: =6.5 -> 6.5 | J84: 8.02 | K84: 4.45 | L84: 3.57 | P84: 8.02
A85: 捞胶（胶渣、填埋料） | B85: 265-101-13 | C85: 固态 | D85: 5 | E85: =27.26+23.44 -> 50.7 | F85: =5+17.26+10+23.44 -> 55.7 | J85: 0 | P85: 0
A86: 不合格有机树脂 | B86: 265-101-13 | C86: 半固态 | D86: 0 | J86: 0 | P86: 0
A87: 含盐废水 | B87: 265-103-13 | C87: 液态 | D87: 0 | J87: 0 | P87: 0
A88: 釜残与滤渣 | B88: 265-103-13 | C88: 半固态 | D88: 0 | J88: 0 | P88: 0
A89: 产品水解物、氯化镁盐 | B89: 265-103-13 | C89: 固态 | D89: 28.04 | F89: =28.04 -> 28.04 | J89: 0 | P89: 0
A90: 污泥 | B90: 265-104-13 | C90: 半固态 | D90: 0 | J90: 0 | P90: 0
A91: 污水处理站污泥 | B91: 265-104-13 | C91: 固态 | D91: 0 | J91: 0 | P91: 0
A92: 印刷版 | B92: 231-002-16 | C92: 固态 | D92: 0 | J92: 0 | P92: 0
A93: 废显影液 | B93: 900-019-16 | C93: 液态 | D93: 0 | E93: =0.16+0.1 -> 0.26 | F93: =0.16 -> 0.16 | J93: 0.1 | L93: 0.1 | P93: 0.1
A94: 废显影液 | B94: 398-001-16 | C94: 液态 | D94: 0 | J94: 0 | P94: 0
A95: 助镀再生废渣 | B95: 336-051-17 | C95: 固态 | D95: 0 | J95: 0 | P95: 0
A96: 含铬污泥 | B96: 336-060-17 | C96: 固态 | D96: 0 | J96: 0 | P96: 0
A97: 镀铜溶液 | B97: 336-062-17 | C97: 液态 | D97: 0 | J97: 0 | P97: 0
A98: 含铜污泥 | B98: 336-062-17 | C98: 固态 | D98: 0 | J98: 0 | P98: 0
A99: 污泥 | B99: 336-053-17 | C99: 固态 | D99: 0 | J99: 0 | P99: 0
A100: 电镀污泥 | B100: 336-063-17 | C100: 半固态 | D100: 0 | J100: 0 | P100: 0
A101: 电镀污泥 | B101: 336-063-17 | C101: 固态 | D101: 0 | J101: 0 | P101: 0
A102: 磷化污泥 | B102: 336-064-17 | C102: 固态 | D102: 40.69 | F102: =18.02+5.75+16.92 -> 40.69 | J102: 0 | P102: 0
A103: 金属表面处理污泥 | B103: 336-064-17 | C103: 半固态 | D103: 0 | J103: 0 | P103: 0
A104: 金属表面处理污泥 | B104: 336-064-17 | C104: 液态 | D104: 1.78 | J104: 1.78 | L104: 1.78 | P104: 1.78
A105: 污泥 | B105: 336-069-17 | C105: 半固态 | D105: 0 | J105: 0 | P105: 0
B106: 336-069-17 | C106: 液态 | D106: 0 | J106: 0 | P106: 0
A107: 污泥 | B107: 336-069-17 | C107: 固态 | D107: 0 | J107: 0 | P107: 0
A108: 废UV灯管 | B108: 900-023-29 | C108: 固态 | D108: 0 | J108: 0 | P108: 0
A109: 废碱液 | B109: 251-015-35 | C109: 液态 | D109: 12.42 | E109: =12.86 -> 12.86 | G109: =12.42 -> 12.42 | J109: 12.86 | L109: 12.86 | P109: 12.86
A110: 片碱袋 | B110: 900-399-35 | C110: 固态 | D110: 0 | J110: 0 | P110: 0
A111: 清洁剂 | B111: 900-399-35 | C111: 液态 | D111: 0 | J111: 0 | P111: 0
A112: 废硫氢化钠残渣 | B112: 900-399-35 | C112: 半固态 | D112: 0 | J112: 0 | P112: 0
A113: 废碱液 | B113: 900-352-35 | C113: 液态 | D113: 110.34 | E113: =6.85 -> 6.85 | J113: 117.19 | K113: 48.08 | L113: 69.11 | P113: 117.19
A114: 废碱液 | B114: 900-354-35 | C114: 液态 | D114: 0 | J114: 0 | P114: 0
A115: 含酚废水 | B115: 261-070-39 | C115: 液态 | D115: 108.92 | E115: =34.64 -> 34.64 | J115: 143.56 | N115: 143.56 | P115: 143.56
A116: 废活性炭 | B116: 261-071-39 | C116: 固态 | D116: 0 | J116: 0 | P116: 0
A117: 污泥 | B117: 261-084-45 | C117: 半固态 | D117: 0 | E117: =0.3 -> 0.3 | F117: =0.3 -> 0.3 | J117: 0 | P117: 0
A118: 含油废物 | B118: 900-041-49 | C118: 固态 | D118: 1206.633 | E118: =2.539+22.17+34.38+54.9+30.6835+12.1345+2.298519+36.6263+23.6076+21.5716+2.59+28.18+69.16+8.42+8.51066+7.078+10.62+1.98+94.625 -> 472.074679 | F118: =15+24.28+33.539+81.44+101.5635+128.188019+139.7773+136.9132+95.975+161.34926 -> 918.025279 | H118: =6.33+4.76+0.81+6.08+24.66+9.261+9.537 -> 61.438 | J118: 699.2444 | K118: =670.765-320 -> 350.765 | L118: 28.4794 | O118: 320 | P118: 699.2444
A119: 含有或沾染危险废物的废弃物 | B119: 900-041-49 | C119: 半固态 | D119: 25.8 | F119: =25.8 -> 25.8 | J119: 0 | P119: 0
A120: 防腐剂 | B120: 900-041-49 | C120: 液态 | D120: 0 | J120: 0 | P120: 0
A121: 废酸碱袋 | B121: 900-042-49 | C121: 固态 | D121: 0 | J121: 0 | P121: 0
A122: 污泥 | B122: 772-006-49 | C122: 固态 | D122: 0 | E122: =21 -> 21 | J122: 21 | L122: 21 | P122: 21
A123: 废活性炭 | B123: 900-039-49 | C123: 固态 | D123: 13.708 | E123: =4.5+0.16+0.24+2.95+1.84+1+3.25 -> 13.94 | F123: =4.66+0.24+2.95+6.04+1 -> 14.89 | J123: 12.758 | L123: 12.758 | P123: 12.758
A124: 废水污泥 | B124: 900-046-49 | C124: 固态 | D124: 0 | J124: 0 | P124: 0
A125: 污泥 | B125: 900-046-49 | C125: 半固态 | D125: 0 | J125: 0 | P125: 0
A126: 过期化学药品 | B126: 900-047-49 | C126: 固态 | D126: 0.289 | E126: =0.04+1.2655+0.88+0.448+0.02 -> 2.6535 | F126: =0.04+1.2655+0.88+0.448+0.02 -> 2.6535 | J126: 0.289 | L126: 0.289 | P126: 0.289
A127: 乙腈、异丙酮、废液 | B127: 900-047-49 | C127: 液态 | D127: 0.05 | E127: =4.592+0.28+2.76+1.64716+11.6691+9.8481+4.12607+11.38808+0.335 -> 46.64551 | F127: =1.249+0.28+1.64716+1.693+0.506+1.35627 -> 6.73143 | G127: =0.5 -> 0.5 | J127: 39.46408 | L127: 39.46408 | P127: 39.46408
A128: 过期药品、剧毒品 | B128: 900-999-49 | C128: 固态 | D128: 0 | E128: =0.92 -> 0.92 | F128: =0.92 -> 0.92 | J128: 0 | P128: 0
A129: 过期面膜原料、残液 | B129: 900-999-49 | C129: 液态 | D129: 3.8 | E129: =13 -> 13 | J129: 16.8 | K129: 1.996 | L129: 14.804 | P129: 16.8
A130: 废催化剂 | B130: 261-152-50 | C130: 固态 | D130: 2.54 | F130: =2.54 -> 2.54 | J130: 0 | P130: 0
A131: 小计： | D131: =SUM(D4:D130) -> 9092.01453 | E131: 1570.253745 | F131: 1405.121165 | G131: 55.039 | H131: 137.078 | I131: 0 | J131: 9065.03011 | K131: =SUM(K4:K130) -> 894.793 | L131: 1323.18498 | M131: 520.021 | N131: 6007.03113 | O131: 320 | P131: 9065.03011
A132: 合计： | F132: =F131+G131+H131+I131 -> 1597.238165
